bitfinex-derivatives/quotes_SOLF0:USTF0_20251026
["timestamp","ask_amount","ask_price","bid_price","bid_amount"]
[1761444633720,2.36871519,192.8,192.71,2.88]
[1761444633927,3.92632675,192.79,192.71,2.88]
[1761444634227,2.36871519,192.8,192.71,2.88]
[1761444634427,3.92629846,192.79,192.71,2.88]
[1761444634725,2.36871519,192.8,192.71,2.88]
[1761444634927,3.92629846,192.79,192.71,2.88]
[1761444635126,2.36871519,192.8,192.71,2.88]
[1761444635324,3.92629846,192.79,192.71,2.88]
[1761444635525,3.92629846,192.78,192.71,2.88]
[1761444635727,2.36871519,192.8,192.71,2.88]
[1761444636025,3.92607075,192.79,192.71,2.88]
[1761444636226,3.92607075,192.78,192.71,2.88]
[1761444636427,2.36871519,192.8,192.71,2.88]
[1761444636625,3.92727932,192.79,192.71,2.88]
[1761444636826,3.92727932,192.78,192.71,2.88]
[1761444637024,3.92725984,192.77,192.71,2.88]
[1761444637222,2.36871519,192.8,192.71,2.88]
[1761444637520,4.4288507,192.81,192.71,2.88]
[1761444637521,2.36871519,192.76,192.71,2.88]
[1761444638325,2.36871519,192.76,192.66,2.78]
[1761444642127,2.36871519,192.78,192.67,2.78]
[1761444643925,2.36871519,192.78,192.68,2.78]
[1761444644626,6.29524483,192.78,192.68,2.78]
[1761444644826,2.36871519,192.78,192.68,2.78]
[1761444645629,6.2952721,192.78,192.68,2.78]
[1761444645833,2.36871519,192.78,192.68,2.78]
[1761444646728,6.29537157,192.78,192.68,2.78]
[1761444646924,2.36871519,192.78,192.68,2.78]
[1761444647128,3.92668721,192.81,192.68,2.78]
[1761444647325,3.92668721,192.8,192.68,2.78]
[1761444647525,3.92668721,192.79,192.68,2.78]
[1761444647721,6.79804298,192.82,192.68,2.78]
[1761444647925,3.92680315,192.81,192.68,2.78]
[1761444648129,3.92680315,192.8,192.68,2.78]
[1761444648331,3.92680315,192.79,192.68,2.78]
[1761444648629,6.79804298,192.82,192.68,2.78]
[1761444648827,3.92689817,192.81,192.68,2.78]
[1761444649034,3.92689817,192.8,192.68,2.78]
[1761444649225,3.92689817,192.79,192.68,2.78]
[1761444649427,3.927064,192.81,192.7,2.78]
[1761444649632,3.927064,192.8,192.7,2.78]
[1761444649838,3.927064,192.79,192.7,2.78]
[1761444650028,3.927064,192.81,192.7,2.78]
[1761444650228,3.927064,192.8,192.7,2.78]
[1761444650430,3.92747712,192.81,192.7,2.78]
[1761444650627,2.36871519,192.82,192.7,2.78]
[1761444650935,3.9274338,192.81,192.7,2.78]
[1761444651135,2.36871519,192.82,192.7,2.78]
[1761444651335,3.92746755,192.81,192.7,2.78]
[1761444651532,2.36871519,192.82,192.7,2.78]
[1761444651735,3.92728526,192.81,192.7,2.78]
[1761444651936,2.36871519,192.82,192.7,2.78]
[1761444652138,3.92728754,192.81,192.7,2.78]
[1761444652332,2.36871519,192.82,192.7,2.78]
[1761444652532,3.92723996,192.81,192.7,2.78]
[1761444652731,2.36871519,192.82,192.7,2.78]
[1761444652932,3.92717787,192.81,192.7,2.78]
[1761444653233,2.36871519,192.82,192.7,2.78]
[1761444653434,3.92716851,192.81,192.7,2.78]
[1761444653626,2.36871519,192.82,192.7,2.78]
[1761444653827,3.92704432,192.81,192.7,2.78]
[1761444654027,2.36871519,192.82,192.7,2.78]
[1761444654332,2.36871519,192.82,192.71,2.78]
[1761444657348,3.92670639,192.81,192.71,2.78]
[1761444657642,2.36871519,192.82,192.71,2.78]
[1761444657834,3.92670029,192.81,192.71,2.78]
[1761444658030,2.36871519,192.82,192.71,2.78]
[1761444658237,3.92624235,192.81,192.71,2.78]
[1761444658436,2.36871519,192.82,192.71,2.78]
[1761444658636,3.92649793,192.81,192.71,2.78]
[1761444658842,2.36871519,192.82,192.71,2.78]
[1761444659043,3.92643583,192.81,192.71,2.78]
[1761444659341,2.36871519,192.82,192.71,2.78]
[1761444659541,3.92692046,192.81,192.71,2.78]
[1761444659742,2.36871519,192.82,192.71,2.78]
[1761444659941,3.92679786,192.81,192.71,2.78]
[1761444660137,2.36871519,192.82,192.71,2.78]
[1761444660337,3.92685907,192.81,192.71,2.78]
[1761444660536,2.36871519,192.82,192.71,2.78]
[1761444660737,3.92718753,192.81,192.71,2.78]
[1761444660939,2.36871519,192.82,192.71,2.78]
[1761444661140,3.92719364,192.81,192.71,2.78]
[1761444661343,3.92749567,192.8,192.71,2.78]
[1761444661540,3.92749567,192.81,192.71,2.78]
[1761444661743,3.92749567,192.8,192.71,2.78]
[1761444661944,3.92749567,192.81,192.71,2.78]
[1761444662240,3.92761456,192.8,192.71,2.78]
[1761444662544,3.92761456,192.81,192.71,2.78]
[1761444662740,3.92761456,192.8,192.71,2.78]
[1761444662940,2.36871519,192.78,192.71,2.78]
[1761444663143,3.92203708,192.77,192.62,2.77]
[1761444663447,3.92203708,192.76,192.64,4.6712]
[1761444663745,4.45835115,192.8,192.65,2.77]
[1761444663746,2.36871519,192.74,192.65,2.77]
[1761444672245,3.91740241,192.75,192.65,2.77]
[1761444672446,2.36871519,192.72,192.65,2.77]
[1761444680963,3.91385617,192.76,192.65,2.77]
[1761444681159,2.36871519,192.7,192.65,2.77]
[1761444694680,1.51769245,192.66,192.65,2.77]
[1761444700989,1.51769245,192.68,192.65,2.77]
[1761444702686,3.92176469,192.74,192.65,2.77]
[1761444702891,1.51769245,192.75,192.65,2.77]
[1761444706896,5.44313799,192.75,192.65,2.77]
[1761444707094,1.51769245,192.75,192.65,2.77]
[1761444709200,1.51769245,192.72,192.65,2.77]
[1761444709695,4.8150602,192.78,192.65,2.77]
[1761444709895,1.51769245,192.72,192.65,2.77]
[1761444711596,3.92980163,192.71,192.65,2.77]
[1761444711898,1.51769245,192.69,192.65,2.77]
[1761444732321,1.51769245,192.74,192.65,2.77]
[1761444732522,3.92802175,192.73,192.65,2.77]
[1761444732714,1.51769245,192.74,192.65,2.77]
[1761444732914,3.92807297,192.73,192.65,2.77]
[1761444733120,1.51769245,192.74,192.65,2.77]
[1761444733314,3.92803561,192.73,192.65,2.77]
[1761444733509,1.51769245,192.74,192.65,2.77]
[1761444735523,3.9276373,192.73,192.65,2.77]
[1761444735715,1.51769245,192.74,192.65,2.77]
[1761444736117,3.9276373,192.73,192.65,2.77]
[1761444736314,1.51769245,192.74,192.65,2.77]
[1761444736524,3.92751309,192.73,192.65,2.77]
[1761444736726,1.51769245,192.74,192.65,2.77]
[1761444736925,3.92751309,192.73,192.65,2.77]
[1761444737124,1.51769245,192.74,192.65,2.77]
[1761444737325,3.92771166,192.73,192.65,2.77]
[1761444737527,1.51769245,192.74,192.65,2.77]
[1761444737728,3.92769934,192.73,192.65,2.77]
[1761444738027,1.51769245,192.74,192.65,2.77]
[1761444743431,6.07616426,192.77,192.65,2.77]
[1761444743638,3.9275647,192.76,192.65,2.77]
[1761444743827,3.9275647,192.75,192.65,2.77]
[1761444744129,3.9275647,192.74,192.65,2.77]
[1761444744334,6.07616426,192.77,192.65,2.77]
[1761444744633,3.92761026,192.76,192.65,2.77]
[1761444744832,3.92761026,192.75,192.65,2.77]
[1761444745032,3.92761026,192.74,192.65,2.77]
[1761444745234,1.51769245,192.77,192.65,2.77]
[1761444745434,3.92767088,192.76,192.65,2.77]
[1761444745736,3.92767088,192.75,192.65,2.77]
[1761444745928,3.92767088,192.74,192.65,2.77]
[1761444746129,5.94353488,192.77,192.65,2.77]
[1761444746325,3.92746694,192.76,192.65,2.77]
[1761444746533,3.92746694,192.75,192.65,2.77]
[1761444746733,3.92746694,192.74,192.65,2.77]
[1761444746934,5.94353488,192.77,192.65,2.77]
[1761444747131,3.92752443,192.76,192.65,2.77]
[1761444747336,3.92752443,192.75,192.65,2.77]
[1761444747538,3.92752443,192.74,192.65,2.77]
[1761444747734,5.94353488,192.77,192.65,2.77]
[1761444748032,3.92762355,192.76,192.65,2.77]
[1761444748233,3.92762355,192.75,192.65,2.77]
[1761444748433,3.92762355,192.74,192.65,2.77]
[1761444748739,1.51769245,192.77,192.65,2.77]
[1761444748937,3.92783312,192.76,192.65,2.77]
[1761444749138,3.92783312,192.75,192.65,2.77]
[1761444749338,3.92783312,192.74,192.65,2.77]
[1761444749536,5.94372463,192.77,192.65,2.77]
[1761444749731,3.92805755,192.76,192.65,2.77]
[1761444749937,3.92805755,192.75,192.65,2.77]
[1761444750137,3.92805755,192.74,192.65,2.77]
[1761444750340,1.51769245,192.77,192.65,2.77]
[1761444750528,3.92814732,192.76,192.65,2.77]
[1761444750735,3.92814732,192.75,192.65,2.77]
[1761444750934,3.92814732,192.74,192.65,2.77]
[1761444751141,1.51769245,192.77,192.65,2.77]
[1761444751342,3.92823584,192.76,192.65,2.77]
[1761444751544,1.51769245,192.77,192.65,2.77]
[1761444751545,3.92823584,192.75,192.65,2.77]
[1761444751739,3.92823584,192.74,192.65,2.77]
[1761444751944,1.51769245,192.77,192.65,2.77]
[1761444752149,3.92823584,192.76,192.65,2.77]
[1761444752349,3.92823584,192.75,192.65,2.77]
[1761444752547,3.92823584,192.74,192.65,2.77]
[1761444752747,1.51769245,192.77,192.65,2.77]
[1761444752947,3.92218065,192.76,192.65,2.77]
[1761444753147,3.92218065,192.75,192.65,2.77]
[1761444753351,1.51769245,192.79,192.68,2.87]
[1761444753538,3.92268601,192.78,192.68,2.87]
[1761444753743,3.92268601,192.77,192.68,2.87]
[1761444753943,3.92268601,192.76,192.68,2.87]
[1761444754151,5.89996346,192.79,192.68,2.87]
[1761444754348,3.922144,192.78,192.68,2.87]
[1761444754544,3.922144,192.77,192.68,2.87]
[1761444754745,3.922144,192.76,192.68,2.87]
[1761444754945,4.38227101,192.79,192.68,2.87]
[1761444755146,3.922144,192.78,192.68,2.87]
[1761444755346,3.922144,192.77,192.68,2.87]
[1761444755648,3.922144,192.76,192.68,2.87]
[1761444755842,4.81563295,192.8,192.68,2.87]
[1761444756044,3.9216467,192.79,192.68,2.87]
[1761444756344,3.9216467,192.78,192.68,2.87]
[1761444756540,3.9216467,192.77,192.68,2.87]
[1761444756742,3.9216467,192.76,192.68,2.87]
[1761444756951,4.81563295,192.8,192.68,2.87]
[1761444757148,24.27486942,192.83,192.68,2.87]
[1761444757149,3.92143571,192.79,192.68,2.87]
[1761444757348,3.92143571,192.78,192.68,2.87]
[1761444757649,3.92143571,192.77,192.68,2.87]
[1761444757850,3.92143571,192.76,192.68,2.87]
[1761444758052,4.38103631,192.8,192.68,2.87]
[1761444758245,3.92116007,192.79,192.68,2.87]
[1761444758454,3.92116007,192.78,192.68,2.87]
[1761444758646,3.92116007,192.77,192.68,2.87]
[1761444758950,3.92116007,192.76,192.68,2.87]
[1761444759252,4.38103631,192.8,192.68,2.87]
[1761444759451,3.92102288,192.79,192.68,2.87]
[1761444759650,3.92102288,192.78,192.68,2.87]
[1761444759853,3.92102288,192.77,192.68,2.87]
[1761444760049,3.92102288,192.76,192.68,2.87]
[1761444760249,3.92102288,192.79,192.68,2.87]
[1761444760450,4.38103631,192.8,192.68,2.87]
[1761444760451,3.92102288,192.78,192.68,2.87]
[1761444760754,3.92102288,192.77,192.68,2.87]
[1761444760953,3.92102288,192.76,192.68,2.87]
[1761444761156,3.92102288,192.79,192.68,2.87]
[1761444761354,3.92102288,192.78,192.68,2.87]
[1761444761559,3.92102288,192.77,192.68,2.87]
[1761444761853,4.81563295,192.82,192.65,2.36823261]
[1761444762057,3.9213307,192.81,192.7,2.71]
[1761444762351,4.81563295,192.85,192.7,2.71]
[1761444762352,4.38040677,192.84,192.7,2.71]
[1761444762550,3.91989142,192.83,192.7,4.6697]
[1761444762747,6.28812403,192.82,192.71,2.71]
[1761444762952,3.91989142,192.81,192.71,2.71]
[1761444763148,3.91861503,192.81,192.71,2.71]
[1761444765352,2.36823261,192.82,192.71,2.71]
[1761444765857,6.28684764,192.82,192.71,2.71]
[1761444766061,3.91861503,192.81,192.71,2.71]
[1761444766257,2.36823261,192.82,192.71,2.71]
[1761444766858,6.28409546,192.82,192.71,2.71]
[1761444767058,2.36823261,192.82,192.71,2.71]
[1761444767651,6.28345648,192.82,192.71,2.71]
[1761444767858,2.36823261,192.82,192.71,2.71]
[1761444768456,6.28375216,192.82,192.71,2.71]
[1761444768757,2.36823261,192.82,192.71,2.71]
[1761444771847,6.28322068,192.82,192.71,2.71]
[1761444772046,2.36823261,192.82,192.71,2.71]
[1761444776064,6.28207481,192.82,192.71,2.71]
[1761444776266,2.36823261,192.82,192.71,2.71]
[1761444777150,6.28194444,192.82,192.71,2.71]
[1761444777355,2.36823261,192.82,192.71,2.71]
[1761444782066,6.28221138,192.82,192.71,2.71]
[1761444782269,2.36823261,192.82,192.71,2.71]
[1761444783262,6.2813367,192.82,192.71,2.71]
[1761444783471,2.36823261,192.82,192.71,2.71]
[1761444784272,2.36823261,192.82,192.73,2.7]
[1761444790780,2.36823261,192.82,192.74,2.78]
[1761444795985,2.36823261,192.82,192.76,2.78]
[1761444805190,2.36823261,192.78,192.73,2.78]
[1761444807092,3.91574204,192.81,192.73,2.78]
[1761444807406,3.91574204,192.8,192.73,2.78]
[1761444807594,2.36823261,192.82,192.73,2.78]
[1761444807795,3.91659599,192.81,192.73,2.78]
[1761444807993,3.91659599,192.8,192.73,2.78]
[1761444808192,2.36823261,192.82,192.73,2.78]
[1761444808393,3.91705922,192.81,192.73,2.78]
[1761444808594,3.91705922,192.8,192.73,2.78]
[1761444808797,2.36823261,192.82,192.73,2.78]
[1761444808994,3.91706373,192.81,192.73,2.78]
[1761444809195,3.91706373,192.8,192.73,2.78]
[1761444809397,2.36823261,192.82,192.73,2.78]
[1761444809592,3.91728557,192.81,192.73,2.78]
[1761444809794,3.91728557,192.8,192.73,2.78]
[1761444809994,2.36823261,192.82,192.73,2.78]
[1761444810194,3.91728707,192.81,192.73,2.78]
[1761444810400,3.91728707,192.8,192.73,2.78]
[1761444810600,2.36823261,192.82,192.73,2.78]
[1761444810799,3.91726179,192.81,192.73,2.78]
[1761444810999,3.91726179,192.8,192.73,2.78]
[1761444811199,2.36823261,192.82,192.73,2.78]
[1761444811400,3.91723669,192.81,192.73,2.78]
[1761444811702,3.91723669,192.8,192.73,2.78]
[1761444812004,2.36823261,192.82,192.73,2.78]
[1761444812299,3.91723219,192.81,192.73,2.78]
[1761444812499,3.91723219,192.8,192.73,2.78]
[1761444812695,2.36823261,192.82,192.73,2.78]
[1761444812902,3.91744793,192.81,192.73,2.78]
[1761444813102,3.91744793,192.8,192.73,2.78]
[1761444813293,2.36823261,192.82,192.73,2.78]
[1761444813495,3.91233418,192.81,192.73,2.78]
[1761444813792,3.91233418,192.8,192.73,2.78]
[1761444813992,2.36823261,192.82,192.73,2.78]
[1761444814203,3.91233107,192.81,192.73,2.78]
[1761444814500,3.91233107,192.8,192.73,2.78]
[1761444814694,1.51569102,192.78,192.73,2.78]
[1761444818204,1.51569102,192.75,192.73,2.78]
[1761444818402,1.51569102,192.75,192.68,2.79]
[1761444818710,1.51569102,192.72,192.68,2.79]
[1761444821197,1.51569102,192.75,192.68,2.79]
[1761444827200,3.90347115,192.77,192.68,2.79]
[1761444827405,1.51569102,192.78,192.68,2.79]
[1761444828108,5.41795323,192.78,192.68,2.79]
[1761444828308,1.51569102,192.78,192.68,2.79]
[1761444830010,5.41724044,192.78,192.68,2.79]
[1761444830308,1.51569102,192.78,192.68,2.79]
[1761444831205,5.4161428,192.78,192.68,2.79]
[1761444831413,1.51569102,192.78,192.68,2.79]
[1761444833801,1.51569102,192.8,192.7,2.79]
[1761444839720,4.35240247,192.84,192.69,6.18569102]
[1761444839721,1.51569102,192.83,192.71,2.79]
[1761444840315,5.4179207,192.83,192.71,2.79]
[1761444840516,3.90222968,192.82,192.71,2.79]
[1761444840915,1.51569102,192.83,192.71,2.79]
[1761444841120,1.51569102,192.83,192.72,2.88]
[1761444841420,5.4179207,192.83,192.72,2.88]
[1761444841626,3.90222968,192.82,192.72,2.88]
[1761444842011,1.51569102,192.83,192.72,2.88]
[1761444842419,5.4179207,192.83,192.72,2.88]
[1761444842617,3.90222968,192.82,192.72,2.88]
[1761444846327,3.90222968,192.81,192.72,2.88]
[1761444846527,3.90222968,192.82,192.72,2.88]
[1761444846828,3.90222968,192.81,192.72,2.88]
[1761444847029,3.90222968,192.82,192.72,2.88]
[1761444847221,3.90222968,192.81,192.74,2.88]
[1761444847423,3.90222968,192.82,192.74,2.88]
[1761444847622,3.90222968,192.81,192.74,2.88]
[1761444847829,3.90222968,192.82,192.74,2.88]
[1761444848128,3.90222968,192.81,192.74,2.88]
[1761444848328,3.90222968,192.82,192.74,2.88]
[1761444848529,3.90222968,192.81,192.74,2.88]
[1761444848728,3.90222968,192.82,192.74,2.88]
[1761444848928,3.90222968,192.81,192.74,2.88]
[1761444849129,3.90222968,192.82,192.74,2.88]
[1761444849430,3.90222968,192.81,192.74,2.88]
[1761444849629,3.90222968,192.82,192.74,2.88]
[1761444849829,3.90222968,192.81,192.74,2.88]
[1761444850029,3.90222968,192.82,192.74,2.88]
[1761444850229,3.90222968,192.81,192.74,2.88]
[1761444850428,3.90222968,192.82,192.74,2.88]
[1761444850635,3.90222968,192.81,192.74,2.88]
[1761444850930,3.90222968,192.82,192.74,2.88]
[1761444851130,3.90222968,192.81,192.74,2.88]
[1761444851329,3.90222968,192.82,192.74,2.88]
[1761444851530,3.90222968,192.81,192.74,2.88]
[1761444851731,3.90222968,192.82,192.74,2.88]
[1761444851932,3.90222968,192.81,192.74,2.88]
[1761444852124,3.90222968,192.82,192.74,2.88]
[1761444852432,3.90222968,192.81,192.74,2.88]
[1761444852631,3.90222968,192.82,192.74,2.88]
[1761444852827,3.90222968,192.81,192.74,2.88]
[1761444853026,3.90222968,192.82,192.74,2.88]
[1761444853227,3.90222968,192.81,192.74,2.88]
[1761444853428,3.90222968,192.82,192.74,2.88]
[1761444853628,3.90222968,192.81,192.74,2.88]
[1761444853829,3.90222968,192.82,192.74,2.88]
[1761444854032,3.90222968,192.81,192.74,2.88]
[1761444854232,3.90222968,192.82,192.74,2.88]
[1761444854435,3.90222968,192.81,192.74,2.88]
[1761444854626,3.90222968,192.82,192.74,2.88]
[1761444854826,3.90222968,192.81,192.74,2.88]
[1761444855128,3.90222968,192.82,192.74,2.88]
[1761444855427,3.90222968,192.81,192.74,2.88]
[1761444855727,3.90222968,192.82,192.74,2.88]
[1761444856033,3.90222968,192.81,192.74,2.88]
[1761444856231,3.90222968,192.82,192.74,2.88]
[1761444856432,3.90222968,192.81,192.74,2.88]
[1761444856733,3.90222968,192.82,192.74,2.88]
[1761444856933,3.90222968,192.81,192.74,2.88]
[1761444857133,3.90222968,192.82,192.74,2.88]
[1761444857332,3.90222968,192.81,192.74,2.88]
[1761444857536,3.90222968,192.82,192.74,2.88]
[1761444857833,1.51569102,192.83,192.74,2.88]
[1761444857834,3.90222968,192.81,192.74,2.88]
[1761444858034,3.90222968,192.82,192.74,2.88]
[1761444858235,3.90222968,192.81,192.74,2.88]
[1761444858438,3.90222968,192.82,192.74,2.88]
[1761444858630,3.90222968,192.81,192.74,2.88]
[1761444858829,3.90222968,192.82,192.74,2.88]
[1761444859030,3.90222968,192.81,192.74,2.88]
[1761444859231,3.90222968,192.82,192.74,2.88]
[1761444859438,3.90222968,192.81,192.74,2.88]
[1761444859640,3.90222968,192.82,192.74,2.88]
[1761444859835,3.90222968,192.81,192.74,2.88]
[1761444860027,3.90222968,192.82,192.74,2.88]
[1761444860232,3.90222968,192.81,192.74,2.88]
[1761444860429,3.90222968,192.82,192.74,2.88]
[1761444860639,3.90222968,192.81,192.74,2.88]
[1761444860841,3.90222968,192.82,192.74,2.88]
[1761444861139,3.90222968,192.81,192.74,2.88]
[1761444861341,5.4179207,192.84,192.74,2.88]
[1761444861540,3.90222968,192.83,192.74,2.88]
[1761444861840,3.90222968,192.82,192.74,2.88]
[1761444862040,3.90222968,192.81,192.74,2.88]
[1761444862241,3.90222968,192.83,192.74,2.88]
[1761444862442,3.90222968,192.82,192.74,2.88]
[1761444862641,1.51569102,192.84,192.74,2.88]
[1761444862642,3.90222968,192.81,192.74,2.88]
[1761444862831,3.90222968,192.83,192.74,2.88]
[1761444863141,3.90222968,192.82,192.74,2.88]
[1761444863341,3.90222968,192.83,192.74,2.88]
[1761444863534,3.90222968,192.82,192.74,2.88]
[1761444863734,3.90222968,192.83,192.74,2.88]
[1761444863934,3.90222968,192.82,192.74,2.88]
[1761444864142,3.90222968,192.83,192.74,2.88]
[1761444864339,3.90222968,192.82,192.74,2.88]
[1761444864542,3.90222968,192.83,192.74,2.88]
[1761444864744,3.90222968,192.82,192.74,2.88]
[1761444865041,3.90222968,192.83,192.74,2.88]
[1761444865241,3.90222968,192.82,192.74,2.88]
[1761444865443,3.90222968,192.83,192.74,2.88]
[1761444865639,3.90222968,192.82,192.74,2.88]
[1761444865842,1.51569102,192.84,192.74,2.88]
[1761444866042,3.91635933,192.83,192.74,2.88]
[1761444866242,3.91635933,192.82,192.74,2.88]
[1761444866442,1.51569102,192.84,192.74,2.88]
[1761444866642,3.916584,192.83,192.74,2.88]
[1761444866843,3.916584,192.82,192.74,2.88]
[1761444867044,1.51569102,192.8,192.74,2.88]
[1761444874653,2.36787107,192.83,192.74,2.88]
[1761444874854,3.91413387,192.82,192.74,2.88]
[1761444875157,3.91413387,192.81,192.74,2.88]
[1761444875356,3.91413387,192.8,192.74,2.88]
[1761444875655,2.36787107,192.83,192.74,2.88]
[1761444875852,3.91512589,192.82,192.74,2.88]
[1761444876054,3.91512589,192.81,192.74,2.88]
[1761444876254,3.91512589,192.8,192.74,2.88]
[1761444876554,2.36787107,192.83,192.74,2.88]
[1761444876754,3.91602155,192.82,192.74,2.88]
[1761444876957,3.91602155,192.81,192.74,2.88]
[1761444877156,3.91602155,192.8,192.74,2.88]
[1761444877357,3.91706883,192.79,192.74,2.88]
[1761444877555,2.36787107,192.83,192.74,2.88]
[1761444877858,3.91712765,192.82,192.74,2.88]
[1761444878050,3.91712765,192.81,192.74,2.88]
[1761444878357,3.91712765,192.8,192.74,2.88]
[1761444878558,3.91712765,192.79,192.74,2.88]
[1761444878757,6.69169634,192.83,192.74,2.88]
[1761444878949,3.91784414,192.82,192.74,2.88]
[1761444879150,3.91784414,192.81,192.74,2.88]
[1761444879350,3.91784414,192.8,192.74,2.88]
[1761444879649,3.91784414,192.79,192.74,2.88]
[1761444879850,6.69169634,192.83,192.74,2.88]
[1761444880053,3.9180041,192.82,192.74,2.88]
[1761444880361,3.9180041,192.81,192.74,2.88]
[1761444880554,3.9180041,192.8,192.74,2.88]
[1761444880758,3.9180041,192.79,192.74,2.88]
[1761444881060,3.9180041,192.78,192.74,2.88]
[1761444881262,4.80418472,192.82,192.74,2.88]
[1761444881462,3.91771306,192.81,192.74,2.88]
[1761444881664,3.91771306,192.8,192.74,2.88]
[1761444881961,3.91771306,192.79,192.74,2.88]
[1761444882264,3.91771306,192.78,192.74,2.88]
[1761444882466,4.80418472,192.82,192.74,2.88]
[1761444882665,3.91786118,192.81,192.74,2.88]
[1761444882872,3.91786118,192.8,192.74,2.88]
[1761444883069,3.91786118,192.79,192.74,2.88]
[1761444883365,3.91786118,192.78,192.74,2.88]
[1761444883571,4.80418472,192.82,192.74,2.88]
[1761444883865,3.91801675,192.81,192.74,2.88]
[1761444884071,3.91801675,192.8,192.74,2.88]
[1761444884266,3.91801675,192.79,192.74,2.88]
[1761444884466,3.91801675,192.78,192.74,2.88]
[1761444884771,4.80418472,192.82,192.74,2.88]
[1761444884964,3.91788474,192.81,192.74,2.88]
[1761444885164,3.91788474,192.8,192.74,2.88]
[1761444885364,3.91788474,192.79,192.74,2.88]
[1761444885573,3.91788474,192.78,192.74,2.88]
[1761444885766,4.82412616,192.82,192.74,2.88]
[1761444885966,3.91773206,192.81,192.74,2.88]
[1761444886168,3.91773206,192.8,192.74,2.88]
[1761444886368,3.91773206,192.79,192.74,2.88]
[1761444886570,3.91773206,192.78,192.74,2.88]
[1761444886773,4.82412616,192.82,192.74,2.88]
[1761444886969,3.91755992,192.81,192.74,2.88]
[1761444887176,3.91755992,192.8,192.74,2.88]
[1761444887377,3.91755992,192.79,192.74,2.88]
[1761444887674,3.91755992,192.78,192.74,2.88]
[1761444887875,4.82412616,192.82,192.74,2.88]
[1761444888080,3.91740338,192.81,192.74,2.88]
[1761444888269,3.91740338,192.8,192.74,2.88]
[1761444888470,3.91740338,192.79,192.74,2.88]
[1761444888664,3.91740338,192.78,192.74,2.88]
[1761444888871,4.82412616,192.82,192.74,2.88]
[1761444889172,3.917238,192.81,192.74,2.88]
[1761444889372,3.917238,192.8,192.74,2.88]
[1761444889574,3.917238,192.79,192.74,2.88]
[1761444889773,3.917238,192.78,192.74,2.88]
[1761444890078,4.82412616,192.82,192.74,2.88]
[1761444890280,3.91711081,192.81,192.74,2.88]
[1761444890479,3.91711081,192.8,192.74,2.88]
[1761444890683,3.91699685,192.79,192.74,2.88]
[1761444890884,3.91699685,192.78,192.74,2.88]
[1761444891073,4.82303292,192.82,192.74,2.88]
[1761444891377,3.91699685,192.81,192.74,2.88]
[1761444891574,3.91699685,192.8,192.74,2.88]
[1761444891774,3.91699685,192.79,192.74,2.88]
[1761444891976,3.91699685,192.78,192.74,2.88]
[1761444892181,4.32253935,192.82,192.74,2.88]
[1761444892484,3.91688992,192.81,192.74,2.88]
[1761444892683,3.91688992,192.8,192.74,2.88]
[1761444892883,3.91688992,192.79,192.74,2.88]
[1761444893084,3.91688992,192.78,192.74,2.88]
[1761444893387,4.32253935,192.82,192.74,2.88]
[1761444893585,3.91773297,192.81,192.74,2.88]
[1761444893784,3.91773297,192.8,192.74,2.88]
[1761444893984,3.91773297,192.79,192.74,2.88]
[1761444894186,3.91773297,192.78,192.74,2.88]
[1761444894383,4.32253935,192.82,192.74,2.88]
[1761444894581,3.91768328,192.81,192.74,2.88]
[1761444894778,3.91768328,192.8,192.74,2.88]